[Event "Live Chess"]
[Site "Chess.com"]
[Date "2023.05.21"]
[Round "-"]
[White "LiamBellwood"]
[Black "KeithArkell"]
[Result "1/2-1/2"]
[WhiteElo "2058"]
[BlackElo "2606"]
[TimeControl "300"]
[EndTime "16:53:00 PDT"]
[Termination "Game drawn by repetition"]

1. d4 {[%clk 0:04:59.5]} 1... e6 {[%clk 0:04:58.7]} 2. Bf4 {[%clk 0:04:58.2]}
2... c5 {[%clk 0:04:57.5]} 3. c4 {[%clk 0:04:49]} 3... cxd4 {[%clk 0:04:56.2]}
4. Nf3 {[%clk 0:04:45.6]} 4... Nc6 {[%clk 0:04:54.4]} 5. Nxd4 {[%clk 0:04:42.3]}
5... Nxd4 {[%clk 0:04:53.4]} 6. Qxd4 {[%clk 0:04:42.2]} 6... Nf6 {[%clk
0:04:51.8]} 7. Nc3 {[%clk 0:04:40.5]} 7... Qb6 {[%clk 0:04:50.7]} 8. Qxb6 {[%clk
0:04:17.3]} 8... axb6 {[%clk 0:04:48.5]} 9. Nb5 {[%clk 0:04:16.5]} 9... Bb4+
{[%clk 0:04:47.4]} 10. Bd2 {[%clk 0:04:00.7]} 10... Bxd2+ {[%clk 0:04:45.9]} 11.
Kxd2 {[%clk 0:04:00.6]} 11... Ke7 {[%clk 0:04:45]} 12. e3 {[%clk 0:03:40.8]}
12... d6 {[%clk 0:04:43.1]} 13. g3 {[%clk 0:03:38]} 13... Bd7 {[%clk 0:04:39]}
14. Nc3 {[%clk 0:03:25.2]} 14... Bc6 {[%clk 0:04:37.4]} 15. Rg1 {[%clk
0:03:24.3]} 15... Ne4+ {[%clk 0:04:31.6]} 16. Nxe4 {[%clk 0:03:16.2]} 16... Bxe4
{[%clk 0:04:28.5]} 17. Bd3 {[%clk 0:03:10]} 17... Bxd3 {[%clk 0:04:27.4]} 18.
Kxd3 {[%clk 0:03:09.9]} 18... Rhc8 {[%clk 0:04:24]} 19. a3 {[%clk 0:03:07]}
19... Rc5 {[%clk 0:04:22.6]} 20. Rac1 {[%clk 0:02:54.9]} 20... Kd7 {[%clk
0:04:20]} 21. e4 {[%clk 0:02:37.4]} 21... b5 {[%clk 0:04:18.9]} 22. cxb5 {[%clk
0:02:25]} 22... Rxb5 {[%clk 0:04:17.7]} 23. Rc2 {[%clk 0:02:24.5]} 23... Rb3+
{[%clk 0:04:14.8]} 24. Ke2 {[%clk 0:02:02.8]} 24... Ra6 {[%clk 0:04:04.8]} 25.
Rgc1 {[%clk 0:01:53.4]} 25... Rc6 {[%clk 0:04:03.2]} 26. Kd2 {[%clk 0:01:51.2]}
26... g5 {[%clk 0:03:58.1]} 27. Rxc6 {[%clk 0:01:33.8]} 27... bxc6 {[%clk
0:03:58]} 28. Rc2 {[%clk 0:01:31]} 28... c5 {[%clk 0:03:55.6]} 29. Kc1 {[%clk
0:01:14.9]} 29... g4 {[%clk 0:03:50.4]} 30. Rc3 {[%clk 0:01:11.1]} 30... Rxc3+
{[%clk 0:03:39.1]} 31. bxc3 {[%clk 0:01:11]} 31... d5 {[%clk 0:03:34.7]} 32.
exd5 {[%clk 0:01:03.4]} 32... exd5 {[%clk 0:03:33.9]} 33. Kd2 {[%clk 0:01:02]}
33... Kc6 {[%clk 0:03:33.1]} 34. Ke3 {[%clk 0:00:51.4]} 34... Kb5 {[%clk
0:03:31.8]} 35. Kf4 {[%clk 0:00:46.3]} 35... d4 {[%clk 0:03:18.1]} 36. cxd4
{[%clk 0:00:42.6]} 36... cxd4 {[%clk 0:03:17.2]} 37. a4+ {[%clk 0:00:34.4]}
37... Kc4 {[%clk 0:03:13.2]} 38. a5 {[%clk 0:00:30.6]} 38... d3 {[%clk
0:03:12.6]} 39. a6 {[%clk 0:00:27.8]} 39... d2 {[%clk 0:03:12]} 40. a7 {[%clk
0:00:27.1]} 40... d1=Q {[%clk 0:03:11.2]} 41. a8=Q {[%clk 0:00:26.5]} 41... Qd2+
{[%clk 0:02:58.5]} 42. Kxg4 {[%clk 0:00:24.5]} 42... Qxf2 {[%clk 0:02:57.3]} 43.
Qe4+ {[%clk 0:00:21.1]} 43... Kc5 {[%clk 0:02:52.2]} 44. Qxh7 {[%clk 0:00:20.4]}
44... Kd6 {[%clk 0:02:49.7]} 45. Qf5 {[%clk 0:00:18.4]} 45... Qe2+ {[%clk
0:02:45.5]} 46. Qf3 {[%clk 0:00:17.5]} 46... Qe6+ {[%clk 0:02:40.7]} 47. Qf5
{[%clk 0:00:17]} 47... Qe2+ {[%clk 0:02:39.7]} 48. Qf3 {[%clk 0:00:16.6]} 48...
Qxh2 {[%clk 0:02:34.6]} 49. Qxf7 {[%clk 0:00:15.9]} 49... Qe2+ {[%clk
0:02:32.6]} 50. Qf3 {[%clk 0:00:14.9]} 50... Qe6+ {[%clk 0:02:31.6]} 51. Qf5
{[%clk 0:00:14.4]} 51... Qe2+ {[%clk 0:02:30.5]} 52. Kg5 {[%clk 0:00:13.9]}
52... Ke7 {[%clk 0:02:19.7]} 53. Qf6+ {[%clk 0:00:12.4]} 53... Ke8 {[%clk
0:02:19.1]} 54. g4 {[%clk 0:00:11.4]} 54... Qd2+ {[%clk 0:02:16.6]} 55. Kg6
{[%clk 0:00:10.3]} 55... Qc2+ {[%clk 0:02:14.4]} 56. Qf5 {[%clk 0:00:09.6]}
56... Qc6+ {[%clk 0:02:11.3]} 57. Qf6 {[%clk 0:00:08.8]} 57... Qc2+ {[%clk
0:02:10.5]} 58. Kg7 {[%clk 0:00:08.4]} 58... Qc7+ {[%clk 0:02:08.1]} 59. Kg6
{[%clk 0:00:07.1]} 59... Qc2+ {[%clk 0:02:06.6]} 1/2-1/2

[Event "Live Chess"]
[Site "Chess.com"]
[Date "2023.05.21"]
[Round "-"]
[White "Singapourfeuj"]
[Black "laminaaprod"]
[Result "0-1"]
[WhiteElo "2199"]
[BlackElo "2227"]
[TimeControl "300"]
[EndTime "16:53:22 PDT"]
[Termination "laminaaprod won by resignation"]

1. d4 {[%clk 0:04:57.8]} 1... d5 {[%clk 0:04:58.7]} 2. c4 {[%clk 0:04:56.8]}
2... e6 {[%clk 0:04:57.7]} 3. Nf3 {[%clk 0:04:56]} 3... c5 {[%clk 0:04:55.3]} 4.
Nc3 {[%clk 0:04:54.9]} 4... Nc6 {[%clk 0:04:54.7]} 5. cxd5 {[%clk 0:04:53.9]}
5... exd5 {[%clk 0:04:54.2]} 6. e3 {[%clk 0:04:53.2]} 6... Nf6 {[%clk
0:04:52.6]} 7. Bb5 {[%clk 0:04:52.1]} 7... Be7 {[%clk 0:04:48.5]} 8. O-O {[%clk
0:04:50.9]} 8... O-O {[%clk 0:04:46.7]} 9. dxc5 {[%clk 0:04:50.1]} 9... Bxc5
{[%clk 0:04:44.2]} 10. a3 {[%clk 0:04:49.3]} 10... a6 {[%clk 0:04:43.8]} 11.
Bxc6 {[%clk 0:04:48.3]} 11... bxc6 {[%clk 0:04:43.7]} 12. b4 {[%clk 0:04:47.5]}
12... Bd6 {[%clk 0:04:43.6]} 13. Bb2 {[%clk 0:04:46.6]} 13... Bg4 {[%clk
0:04:43.1]} 14. h3 {[%clk 0:04:45.7]} 14... Bh5 {[%clk 0:04:42.4]} 15. Re1
{[%clk 0:04:38.9]} 15... Bc7 {[%clk 0:04:40.7]} 16. g3 {[%clk 0:04:33.2]} 16...
Qe7 {[%clk 0:04:35.8]} 17. Kg2 {[%clk 0:04:31.9]} 17... Rad8 {[%clk 0:04:31]}
18. Qd4 {[%clk 0:04:30.7]} 18... Bxf3+ {[%clk 0:04:00.8]} 19. Kxf3 {[%clk
0:04:27.3]} 19... Be5 {[%clk 0:04:00.7]} 20. Qh4 {[%clk 0:04:22.7]} 20... Qe6
{[%clk 0:03:39.6]} 21. Kg2 {[%clk 0:04:21.1]} 21... Rc8 {[%clk 0:03:29.2]} 22.
Na4 {[%clk 0:04:20]} 22... Bxb2 {[%clk 0:03:26.3]} 23. Nxb2 {[%clk 0:04:18.8]}
23... c5 {[%clk 0:03:25.7]} 24. bxc5 {[%clk 0:04:15.8]} 24... Rxc5 {[%clk
0:03:24.6]} 25. Rac1 {[%clk 0:04:14.2]} 25... Rfc8 {[%clk 0:03:19.4]} 26. Nd3
{[%clk 0:04:13.1]} 26... Rxc1 {[%clk 0:02:59.8]} 27. Rxc1 {[%clk 0:04:11.8]}
27... Rxc1 {[%clk 0:02:59.3]} 28. Nxc1 {[%clk 0:04:10.7]} 28... d4 {[%clk
0:02:58.9]} 29. Qxd4 {[%clk 0:04:07.9]} 29... Qc6+ {[%clk 0:02:44.5]} 30. Kh2
{[%clk 0:04:06.7]} 30... h6 {[%clk 0:02:41.6]} 31. Nd3 {[%clk 0:04:05.3]} 31...
Qf3 {[%clk 0:02:27.6]} 32. Kg1 {[%clk 0:03:53.4]} 32... Ne4 {[%clk 0:02:17.1]}
33. a4 {[%clk 0:03:51]} 33... Qd1+ {[%clk 0:01:25.1]} 34. Kg2 {[%clk 0:03:47.1]}
34... Nd2 {[%clk 0:01:24.6]} 35. Ne5 {[%clk 0:03:16.3]} 35... Qf1+ {[%clk
0:01:23.3]} 36. Kh2 {[%clk 0:03:15.1]} 36... Qxf2+ {[%clk 0:01:22.7]} 37. Kh1
{[%clk 0:03:14.3]} 37... Nf1 {[%clk 0:00:53.5]} 38. Qd8+ {[%clk 0:03:09.2]}
38... Kh7 {[%clk 0:00:51.6]} 39. Qd3+ {[%clk 0:03:07]} 39... g6 {[%clk
0:00:50.9]} 40. Qxf1 {[%clk 0:03:01.8]} 40... Qxf1+ {[%clk 0:00:48.9]} 41. Kh2
{[%clk 0:03:00.9]} 41... Qf2+ {[%clk 0:00:48.2]} 42. Kh1 {[%clk 0:02:58.9]}
42... Qxg3 {[%clk 0:00:47.4]} 43. Nxf7 {[%clk 0:02:55.2]} 43... Qf3+ {[%clk
0:00:45.7]} 0-1

[Event "Live Chess"]
[Site "Chess.com"]
[Date "2023.05.21"]
[Round "-"]
[White "CheckThis4"]
[Black "chessfiction"]
[Result "1-0"]
[WhiteElo "2546"]
[BlackElo "2327"]
[TimeControl "300"]
[EndTime "16:53:25 PDT"]
[Termination "CheckThis4 won by checkmate"]

1. d4 {[%clk 0:04:55.8]} 1... d6 {[%clk 0:04:59.3]} 2. Nc3 {[%clk 0:04:53.9]}
2... Nf6 {[%clk 0:04:59.2]} 3. e4 {[%clk 0:04:53.1]} 3... c6 {[%clk 0:04:58.7]}
4. f4 {[%clk 0:04:49.4]} 4... Qa5 {[%clk 0:04:57.8]} 5. e5 {[%clk 0:04:43.9]}
5... Ne4 {[%clk 0:04:56.6]} 6. Qf3 {[%clk 0:04:40.8]} 6... d5 {[%clk 0:04:55.1]}
7. Bd3 {[%clk 0:04:33.1]} 7... Na6 {[%clk 0:04:39.8]} 8. Ne2 {[%clk 0:04:30.2]}
8... Nb4 {[%clk 0:04:34.6]} 9. O-O {[%clk 0:04:26.7]} 9... f5 {[%clk 0:04:30.9]}
10. exf6 {[%clk 0:04:17.7]} 10... Nxf6 {[%clk 0:04:27]} 11. f5 {[%clk
0:04:10.2]} 11... Nxd3 {[%clk 0:04:12.1]} 12. cxd3 {[%clk 0:04:08.5]} 12... e6
{[%clk 0:03:34.2]} 13. Bg5 {[%clk 0:04:05.5]} 13... Be7 {[%clk 0:03:31.6]} 14.
Bxf6 {[%clk 0:03:44.4]} 14... Bxf6 {[%clk 0:03:28.2]} 15. Qh5+ {[%clk
0:03:43.4]} 15... Ke7 {[%clk 0:03:25.6]} 16. Rae1 {[%clk 0:03:41.3]} 16... exf5
{[%clk 0:03:14.9]} 17. Ng3+ {[%clk 0:03:36.4]} 17... Kd8 {[%clk 0:03:12.9]} 18.
Nxf5 {[%clk 0:03:31.8]} 18... g6 {[%clk 0:03:05.4]} 19. Qh6 {[%clk 0:03:02.4]}
19... Bxf5 {[%clk 0:03:03.9]} 20. Rxf5 {[%clk 0:02:59.6]} 20... Bxd4+ {[%clk
0:03:01.8]} 21. Kh1 {[%clk 0:02:58.6]} 21... gxf5 {[%clk 0:02:57.6]} 22. Qd6+
{[%clk 0:02:56.8]} 22... Kc8 {[%clk 0:02:56.2]} 23. Re7 {[%clk 0:02:45.6]} 23...
Qb6 {[%clk 0:02:11.2]} 24. Qd7+ {[%clk 0:02:38.2]} 24... Kb8 {[%clk 0:02:09.3]}
25. Qd6+ {[%clk 0:02:31.7]} 25... Kc8 {[%clk 0:02:07.5]} 26. Qd7+ {[%clk
0:01:45.5]} 26... Kb8 {[%clk 0:02:05.7]} 27. Na4 {[%clk 0:01:32.3]} 27... Rd8
{[%clk 0:01:59.8]} 28. Re8 {[%clk 0:01:20.5]} 28... Rxe8 {[%clk 0:01:49.2]} 29.
Qxe8+ {[%clk 0:01:17.8]} 29... Kc7 {[%clk 0:01:48.9]} 30. Qf7+ {[%clk
0:01:05.3]} 30... Kb8 {[%clk 0:01:41.4]} 31. Nxb6 {[%clk 0:01:02.9]} 31... axb6
{[%clk 0:01:37.8]} 32. a3 {[%clk 0:00:57.8]} 32... Bxb2 {[%clk 0:01:34.3]} 33.
Qf8+ {[%clk 0:00:57.1]} 33... Ka7 {[%clk 0:01:32.1]} 34. Qxf5 {[%clk 0:00:51.8]}
34... Bxa3 {[%clk 0:01:30.9]} 35. Qxh7 {[%clk 0:00:50.3]} 35... b5 {[%clk
0:01:17.9]} 36. d4 {[%clk 0:00:49.3]} 36... b4 {[%clk 0:01:16.2]} 37. Qd3 {[%clk
0:00:47.3]} 37... Re8 {[%clk 0:01:13.5]} 38. h4 {[%clk 0:00:46]} 38... Re4
{[%clk 0:01:07.8]} 39. g3 {[%clk 0:00:44.4]} 39... b5 {[%clk 0:00:54.4]} 40. h5
{[%clk 0:00:43]} 40... Bc1 {[%clk 0:00:53]} 41. Qc2 {[%clk 0:00:39]} 41... Re1+
{[%clk 0:00:51.6]} 42. Kg2 {[%clk 0:00:37.6]} 42... Kb7 {[%clk 0:00:49]} 43. Kf2
{[%clk 0:00:33.8]} 43... Rh1 {[%clk 0:00:46.7]} 44. Kg2 {[%clk 0:00:33.2]} 44...
Re1 {[%clk 0:00:44.7]} 45. Qf2 {[%clk 0:00:29]} 45... Rd1 {[%clk 0:00:40.4]} 46.
Qf7+ {[%clk 0:00:28.1]} 46... Kb6 {[%clk 0:00:38.5]} 47. Qf6 {[%clk 0:00:27.5]}
47... Rd2+ {[%clk 0:00:30.8]} 48. Kh3 {[%clk 0:00:25.9]} 48... Rd1 {[%clk
0:00:26.3]} 49. Qd8+ {[%clk 0:00:23.5]} 49... Kb7 {[%clk 0:00:24.6]} 50. Qd7+
{[%clk 0:00:22.4]} 50... Kb6 {[%clk 0:00:24.1]} 51. Qd8+ {[%clk 0:00:21.2]}
51... Kb7 {[%clk 0:00:23.5]} 52. Qe7+ {[%clk 0:00:19.9]} 52... Kb6 {[%clk
0:00:22.5]} 53. Qxb4 {[%clk 0:00:18.9]} 53... Be3 {[%clk 0:00:18.4]} 54. Qc5+
{[%clk 0:00:17.7]} 54... Kb7 {[%clk 0:00:18]} 55. Qe7+ {[%clk 0:00:16.6]} 55...
Kb6 {[%clk 0:00:17.6]} 56. Qxe3 {[%clk 0:00:16.4]} 56... Rb1 {[%clk 0:00:16.4]}
57. h6 {[%clk 0:00:15.7]} 57... Rh1+ {[%clk 0:00:16]} 58. Kg4 {[%clk 0:00:14.6]}
58... Rf1 {[%clk 0:00:15.9]} 59. h7 {[%clk 0:00:13.3]} 59... Rf7 {[%clk
0:00:15.4]} 60. Qh6 {[%clk 0:00:11.7]} 60... Rb7 {[%clk 0:00:15.3]} 61. h8=Q
{[%clk 0:00:10.8]} 61... Ka5 {[%clk 0:00:15.2]} 62. Qd8+ {[%clk 0:00:10]} 62...
Rb6 {[%clk 0:00:15.1]} 63. Qd2+ {[%clk 0:00:09.2]} 63... Ka6 {[%clk 0:00:14.3]}
64. Qa2+ {[%clk 0:00:07.8]} 64... Kb7 {[%clk 0:00:13]} 65. Qd7+ {[%clk
0:00:07.2]} 65... Kb8 {[%clk 0:00:12.5]} 66. Qaa7# {[%clk 0:00:06.7]} 1-0

[Event "Live Chess"]
[Site "Chess.com"]
[Date "2023.05.21"]
[Round "-"]
[White "CeladonFish"]
[Black "flyingpuffins"]
[Result "1/2-1/2"]
[WhiteElo "1128"]
[BlackElo "1966"]
[TimeControl "300"]
[EndTime "16:53:25 PDT"]
[Termination "Game drawn by repetition"]

1. d4 {[%clk 0:04:59.2]} 1... d5 {[%clk 0:04:58.8]} 2. c4 {[%clk 0:04:58.1]}
2... c6 {[%clk 0:04:57.9]} 3. Nc3 {[%clk 0:04:57.3]} 3... Nf6 {[%clk 0:04:57.1]}
4. Bf4 {[%clk 0:04:56.8]} 4... dxc4 {[%clk 0:04:54.4]} 5. Nf3 {[%clk 0:04:56]}
5... b5 {[%clk 0:04:52.5]} 6. e3 {[%clk 0:04:54.5]} 6... Bb7 {[%clk 0:04:51.8]}
7. a4 {[%clk 0:04:52.3]} 7... a6 {[%clk 0:04:49.2]} 8. b3 {[%clk 0:04:46.2]}
8... cxb3 {[%clk 0:04:46.7]} 9. Qxb3 {[%clk 0:04:45.5]} 9... e6 {[%clk
0:04:37.4]} 10. axb5 {[%clk 0:04:38.2]} 10... cxb5 {[%clk 0:04:34.2]} 11. Bxb5+
{[%clk 0:04:26.7]} 11... axb5 {[%clk 0:04:24.4]} 12. Qxb5+ {[%clk 0:04:23.4]}
12... Bc6 {[%clk 0:04:23.3]} 13. Rxa8 {[%clk 0:04:04.8]} 13... Nfd7 {[%clk
0:02:30.9]} 14. Rxb8 {[%clk 0:03:34.5]} 14... Nxb8 {[%clk 0:01:56.4]} 15. Qxb8
{[%clk 0:03:30.4]} 15... Qxb8 {[%clk 0:01:52.5]} 16. Bxb8 {[%clk 0:03:29.6]}
16... Bb4 {[%clk 0:01:51.9]} 17. Kd2 {[%clk 0:03:23.5]} 17... Ke7 {[%clk
0:01:41.9]} 18. Rb1 {[%clk 0:03:18.4]} 18... Rxb8 {[%clk 0:01:37.6]} 19. Rb3
{[%clk 0:03:01]} 19... Bd5 {[%clk 0:01:32.2]} 20. Rb2 {[%clk 0:02:54.7]} 20...
Bd6 {[%clk 0:01:17.8]} 21. Nxd5+ {[%clk 0:02:51.9]} 21... exd5 {[%clk
0:01:14.6]} 22. Rxb8 {[%clk 0:02:51.5]} 22... Bxb8 {[%clk 0:01:10.1]} 23. Kd3
{[%clk 0:02:49.4]} 23... Ke6 {[%clk 0:01:08.7]} 24. Nd2 {[%clk 0:02:48.3]} 24...
Bxh2 {[%clk 0:01:06.3]} 25. g3 {[%clk 0:02:46.8]} 25... h5 {[%clk 0:01:03.7]}
26. e4 {[%clk 0:02:44.9]} 26... h4 {[%clk 0:01:00.7]} 27. gxh4 {[%clk
0:02:43.1]} 27... g6 {[%clk 0:00:53.8]} 28. Nf3 {[%clk 0:02:36.1]} 28... Bf4
{[%clk 0:00:50.2]} 29. exd5+ {[%clk 0:02:32.6]} 29... Kxd5 {[%clk 0:00:47.7]}
30. Ne5 {[%clk 0:02:32]} 30... Bxe5 {[%clk 0:00:45]} 31. dxe5 {[%clk 0:02:31.4]}
31... Kxe5 {[%clk 0:00:44.9]} 32. Ke3 {[%clk 0:02:30.9]} 32... Kf5 {[%clk
0:00:44.1]} 33. Kf3 {[%clk 0:02:30.8]} 33... f6 {[%clk 0:00:39.7]} 34. Kg3
{[%clk 0:02:29.6]} 34... Ke4 {[%clk 0:00:39]} 35. Kg4 {[%clk 0:02:26.8]} 35...
Kd3 {[%clk 0:00:22.1]} 36. f3 {[%clk 0:02:24.8]} 36... Ke3 {[%clk 0:00:21.2]}
37. f4 {[%clk 0:02:21.7]} 37... Ke4 {[%clk 0:00:20.3]} 38. Kg3 {[%clk
0:02:17.2]} 38... Kf5 {[%clk 0:00:15.9]} 39. Kf3 {[%clk 0:02:15]} 39... Ke6
{[%clk 0:00:14.9]} 40. Kg4 {[%clk 0:02:13.9]} 40... Kd5 {[%clk 0:00:13.3]} 41.
f5 {[%clk 0:02:12.1]} 41... gxf5+ {[%clk 0:00:10.4]} 42. Kxf5 {[%clk 0:02:11.3]}
42... Kd6 {[%clk 0:00:08.6]} 43. Kxf6 {[%clk 0:02:10.5]} 43... Kd7 {[%clk
0:00:08.5]} 44. Kg6 {[%clk 0:02:10]} 44... Ke8 {[%clk 0:00:06.8]} 45. h5 {[%clk
0:02:09.4]} 45... Kf8 {[%clk 0:00:06]} 46. h6 {[%clk 0:02:08.8]} 46... Kg8
{[%clk 0:00:05.4]} 47. Kh5 {[%clk 0:02:05.2]} 47... Kh8 {[%clk 0:00:05.3]} 48.
Kg5 {[%clk 0:02:04.6]} 48... Kg8 {[%clk 0:00:05.2]} 49. Kf5 {[%clk 0:02:03.5]}
49... Kh8 {[%clk 0:00:05.1]} 50. Kg6 {[%clk 0:02:02.5]} 50... Kg8 {[%clk
0:00:05]} 51. Kh5 {[%clk 0:02:01.8]} 51... Kh8 {[%clk 0:00:04.9]} 52. Kh4 {[%clk
0:02:00.9]} 52... Kg8 {[%clk 0:00:04.8]} 53. Kg5 {[%clk 0:01:59.3]} 53... Kh8
{[%clk 0:00:04.7]} 54. Kg6 {[%clk 0:01:58.1]} 54... Kg8 {[%clk 0:00:04.6]}
1/2-1/2

[Event "Live Chess"]
[Site "Chess.com"]
[Date "2023.05.21"]
[Round "-"]
[White "HD_IN4k"]
[Black "Hussamalhaidar"]
[Result "0-1"]
[WhiteElo "388"]
[BlackElo "1040"]
[TimeControl "300"]
[EndTime "16:53:28 PDT"]
[Termination "Hussamalhaidar won by resignation"]

1. d4 {[%clk 0:04:56.8]} 1... e5 {[%clk 0:04:54.1]} 2. dxe5 {[%clk 0:04:54.5]}
2... d6 {[%clk 0:04:53.3]} 3. Nf3 {[%clk 0:04:53.3]} 3... Nc6 {[%clk 0:04:48.3]}
4. exd6 {[%clk 0:04:51.2]} 4... Bxd6 {[%clk 0:04:46.5]} 5. Nd4 {[%clk
0:04:44.7]} 5... Nf6 {[%clk 0:04:32.9]} 6. Nxc6 {[%clk 0:04:41]} 6... bxc6
{[%clk 0:04:29.4]} 7. c4 {[%clk 0:04:33.6]} 7... Qe7 {[%clk 0:04:19.5]} 8. e3
{[%clk 0:04:27.6]} 8... Bb7 {[%clk 0:04:12.8]} 9. c5 {[%clk 0:04:22.4]} 9...
Bxc5 {[%clk 0:04:07.1]} 10. Nc3 {[%clk 0:04:14.3]} 10... Bd6 {[%clk 0:04:01.6]}
11. f3 {[%clk 0:04:07.9]} 11... O-O-O {[%clk 0:03:57.2]} 12. Ne4 {[%clk
0:04:06.3]} 12... Nxe4 {[%clk 0:03:50.4]} 13. fxe4 {[%clk 0:04:05.3]} 13... Bb4+
{[%clk 0:03:45.6]} 14. Bd2 {[%clk 0:04:02.1]} 14... Rxd2 {[%clk 0:03:37.9]} 15.
Qc1 {[%clk 0:03:52]} 15... Rc2+ {[%clk 0:03:25.9]} 16. Kd1 {[%clk 0:03:43]}
16... Rxc1+ {[%clk 0:03:21.1]} 17. Rxc1 {[%clk 0:03:41.2]} 17... Qd6+ {[%clk
0:03:18.1]} 18. Ke2 {[%clk 0:03:36.8]} 18... Qd2+ {[%clk 0:03:15.2]} 19. Kf3
{[%clk 0:03:33]} 19... Qxc1 {[%clk 0:03:09.3]} 20. h4 {[%clk 0:03:28.4]} 20...
Qxb2 {[%clk 0:02:57.4]} 21. g3 {[%clk 0:03:26.6]} 21... Qxa2 {[%clk 0:02:51.7]}
22. e5 {[%clk 0:03:23.4]} 22... c5+ {[%clk 0:02:50]} 23. e4 {[%clk 0:03:21.1]}
23... Re8 {[%clk 0:02:43.2]} 24. Bh3+ {[%clk 0:03:13.7]} 24... Kb8 {[%clk
0:02:39.3]} 25. Rd1 {[%clk 0:03:07.9]} 25... Bxe4+ {[%clk 0:02:34.2]} 26. Kxe4
{[%clk 0:03:05.5]} 26... Qc2+ {[%clk 0:02:32.7]} 27. Rd3 {[%clk 0:03:02.2]}
27... c4 {[%clk 0:02:29.8]} 28. Ke3 {[%clk 0:02:58.8]} 28... Qxd3+ {[%clk
0:02:24.9]} 29. Kf4 {[%clk 0:02:58.5]} 29... h6 {[%clk 0:02:18.6]} 30. g4 {[%clk
0:02:52.8]} 30... Qxh3 {[%clk 0:02:15]} 31. g5 {[%clk 0:02:50.8]} 31... Qxh4+
{[%clk 0:02:11.6]} 32. Kf5 {[%clk 0:02:48.1]} 32... Qxg5+ {[%clk 0:02:08.9]} 33.
Ke4 {[%clk 0:02:45.9]} 33... Rxe5+ {[%clk 0:02:05.8]} 0-1

[Event "Live Chess"]
[Site "Chess.com"]
[Date "2023.05.21"]
[Round "-"]
[White "gmnorfolk"]
[Black "Pablo_dmp"]
[Result "1-0"]
[WhiteElo "2128"]
[BlackElo "1895"]
[TimeControl "300"]
[EndTime "16:53:36 PDT"]
[Termination "gmnorfolk won on time"]

1. d4 {[%clk 0:04:53.9]} 1... Nf6 {[%clk 0:04:57.4]} 2. c4 {[%clk 0:04:51.6]}
2... e6 {[%clk 0:04:56.4]} 3. Nc3 {[%clk 0:04:50.7]} 3... Bb4 {[%clk 0:04:55.5]}
4. Nf3 {[%clk 0:04:48.2]} 4... c5 {[%clk 0:04:49.1]} 5. g3 {[%clk 0:04:46.4]}
5... cxd4 {[%clk 0:04:47.2]} 6. Nxd4 {[%clk 0:04:46.1]} 6... Nc6 {[%clk
0:04:46]} 7. Bg2 {[%clk 0:04:45.2]} 7... Qb6 {[%clk 0:04:41.6]} 8. Nxc6 {[%clk
0:04:41.8]} 8... bxc6 {[%clk 0:04:41.5]} 9. O-O {[%clk 0:04:40]} 9... Bxc3
{[%clk 0:04:39.5]} 10. bxc3 {[%clk 0:04:39.1]} 10... Ba6 {[%clk 0:04:35.6]} 11.
Qd6 {[%clk 0:04:34]} 11... Qb8 {[%clk 0:04:17.6]} 12. Qc5 {[%clk 0:04:30.3]}
12... Qb6 {[%clk 0:04:10.9]} 13. Qa3 {[%clk 0:04:23.5]} 13... Bxc4 {[%clk
0:03:49.3]} 14. Be3 {[%clk 0:04:19.1]} 14... Qc7 {[%clk 0:03:42.7]} 15. Bc5
{[%clk 0:04:16.9]} 15... d5 {[%clk 0:03:27.7]} 16. Rfe1 {[%clk 0:04:08.9]} 16...
Nd7 {[%clk 0:03:20.9]} 17. Bd6 {[%clk 0:04:06.9]} 17... Qd8 {[%clk 0:03:15.8]}
18. e4 {[%clk 0:04:04.8]} 18... Nb6 {[%clk 0:03:11.8]} 19. Qc5 {[%clk
0:04:00.2]} 19... Rc8 {[%clk 0:03:02.1]} 20. a4 {[%clk 0:03:57.2]} 20... Nd7
{[%clk 0:02:47.7]} 21. Qd4 {[%clk 0:03:54]} 21... Qf6 {[%clk 0:02:42.6]} 22. e5
{[%clk 0:03:51.9]} 22... Qg6 {[%clk 0:02:35.8]} 23. Qxa7 {[%clk 0:03:46.6]}
23... h5 {[%clk 0:02:23.2]} 24. h4 {[%clk 0:03:44.7]} 24... Qc2 {[%clk
0:02:13.8]} 25. Rec1 {[%clk 0:03:33.9]} 25... Qf5 {[%clk 0:02:05]} 26. Rab1
{[%clk 0:03:26.1]} 26... f6 {[%clk 0:02:01.6]} 27. Rb7 {[%clk 0:03:10.1]} 27...
Rd8 {[%clk 0:01:38.9]} 28. Rxd7 {[%clk 0:02:44.4]} 28... Rxd7 {[%clk 0:01:35]}
29. Qb8+ {[%clk 0:02:43.4]} 29... Rd8 {[%clk 0:01:33.3]} 30. Qc7 {[%clk
0:02:39.7]} 30... Rd7 {[%clk 0:01:27.6]} 31. Qxc6 {[%clk 0:02:28.8]} 31... fxe5
{[%clk 0:00:32]} 32. a5 {[%clk 0:02:27]} 32... e4 {[%clk 0:00:27.6]} 33. a6
{[%clk 0:02:23]} 33... e5 {[%clk 0:00:25.3]} 34. a7 {[%clk 0:02:18.8]} 34... Kf7
{[%clk 0:00:21.9]} 35. a8=Q {[%clk 0:02:12.7]} 35... Rxa8 {[%clk 0:00:19.1]} 36.
Qxa8 {[%clk 0:02:09.8]} 36... Rxd6 {[%clk 0:00:19]} 37. Qb7+ {[%clk 0:02:06.8]}
37... Rd7 {[%clk 0:00:18.5]} 38. Qc6 {[%clk 0:02:03.8]} 38... g5 {[%clk
0:00:17.4]} 39. hxg5 {[%clk 0:02:02.3]} 39... Ke7 {[%clk 0:00:14.8]} 40. Qc5+
{[%clk 0:02:00.2]} 40... Ke6 {[%clk 0:00:13]} 41. g6 {[%clk 0:01:56.4]} 41...
Qxg6 {[%clk 0:00:10.9]} 42. Ra1 {[%clk 0:01:53.1]} 42... Rd6 {[%clk 0:00:09.9]}
43. Ra8 {[%clk 0:01:50.9]} 43... Qg4 {[%clk 0:00:07.4]} 44. Qc8+ {[%clk
0:01:41]} 44... Kf6 {[%clk 0:00:05.4]} 45. Qf8+ {[%clk 0:01:35.4]} 45... Kg5
{[%clk 0:00:02.2]} 46. Qxd6 {[%clk 0:01:30.7]} 46... Qd1+ {[%clk 0:00:01.5]} 47.
Kh2 {[%clk 0:01:28.8]} 1-0